fUST/lending_fUST_20251219
["ID","MTS","AMOUNT","RATE_DAILY","PERIOD"]
[399066574,1766096793907,-500.0,0.00049589,120]
[399066575,1766096793930,-567.61,0.00049589,120]
[399066576,1766096793950,-500.0,0.00049589,120]
[399066577,1766096793972,-624.67,0.00049589,120]
[399066578,1766096793994,-717.56,0.00049589,120]
[399066579,1766096794015,-500.0,0.00049589,120]
[399066580,1766096794037,-1634.16,0.00049589,120]
[399066581,1766096794058,-251.5,0.00049589,120]
[399066582,1766096794080,-500.0,0.00049589,120]
[399066583,1766096794104,-151.0,0.00049589,120]
[399066584,1766096794125,-951.03,0.00049589,120]
[399066585,1766096794147,-251.5,0.00049589,120]
[399066586,1766096794170,-151.0,0.00049589,120]
[399066587,1766096794196,-251.5,0.00049589,120]
[399066588,1766096794218,-519.48,0.00049589,120]
[399066589,1766096794240,-251.5,0.00049589,120]
[399066590,1766096794263,-500.0,0.00049589,120]
[399066591,1766096794292,-500.0,0.00049589,120]
[399066592,1766096794321,-500.0,0.00049589,120]
[399066593,1766096794348,-501.31,0.00049589,120]
[399066594,1766096794374,-500.0,0.00049589,120]
[399066595,1766096794400,-500.0,0.00049589,120]
[399066596,1766096794427,-700.17,0.00049589,120]
[399066597,1766096794453,-151.0,0.00049589,120]
[399066598,1766096794483,-4724.75,0.00049589,120]
[399066599,1766096794510,-205.467944,0.00049589,120]
[399066600,1766096794536,-500.0,0.00049589,120]
[399066601,1766096794562,-500.0,0.00049589,120]
[399066602,1766096794590,-500.0,0.00049589,120]
[399066603,1766096794617,-500.0,0.00049589,120]
[399066604,1766096794643,-500.0,0.00049589,120]
[399066605,1766096794667,-500.0,0.00049589,120]
[399066606,1766096794693,-500.0,0.00049589,120]
[399066607,1766096794719,-500.0,0.00049589,120]
[399066608,1766096794747,-151.0,0.00049589,120]
[399066609,1766096794776,-1329.42,0.00049589,120]
[399066610,1766096794804,-500.0,0.00049589,120]
[399066611,1766096794828,-500.0,0.00049589,120]
[399066612,1766096794854,-500.0,0.00049589,120]
[399066613,1766096794882,-164.99,0.00049589,120]
[399066614,1766096794912,-1675.22,0.00049589,120]
[399066615,1766096794936,-500.0,0.00049589,120]
[399066616,1766096794967,-500.0,0.00049589,120]
[399066617,1766096794993,-582.59,0.00049589,120]
[399066618,1766096795019,-500.0,0.00049589,120]
[399066619,1766096795043,-151.0,0.00049589,120]
[399066620,1766096795069,-1386.22,0.00049589,120]
[399066621,1766096795095,-500.0,0.00049589,120]
[399066622,1766096795120,-1176.27,0.00049589,120]
[399066623,1766096795146,-500.0,0.00049589,120]
[399066624,1766096795171,-151.0,0.00049589,120]
[399066625,1766096795202,-151.0,0.00049589,120]
[399066626,1766096795233,-802.6,0.00049589,120]
[399066627,1766096795266,-151.0,0.00049589,120]
[399066628,1766096795294,-151.0,0.00049589,120]
[399066629,1766096795323,-151.0,0.00049589,120]
[399066630,1766096795349,-500.0,0.00049589,120]
[399066631,1766096795375,-667.39,0.00049589,120]
[399066632,1766096795400,-151.0,0.00049589,120]
[399066633,1766096795425,-909.07,0.00049589,120]
[399066634,1766096795449,-508.11,0.00049589,120]
[399066635,1766096795474,-262.86371209,0.00049589,120]
[399066636,1766096795498,-500.0,0.00049589,120]
[399066637,1766096795526,-500.0,0.00049589,120]
[399066638,1766096795550,-500.0,0.00049589,120]
[399066639,1766096795575,-428.9,0.00049589,120]
[399066640,1766096795600,-500.0,0.00049589,120]
[399066641,1766096795624,-582.84,0.00049589,120]
[399066642,1766096795649,-500.0,0.00049589,120]
[399066643,1766096795676,-500.0,0.00049589,120]
[399066644,1766096795702,-500.0,0.00049589,120]
[399066645,1766096795727,-500.0,0.00049589,120]
[399066646,1766096795749,-500.0,0.00049589,120]
[399066647,1766096795772,-744.27,0.00049589,120]
[399066648,1766096795794,-500.0,0.00049589,120]
[399066649,1766096795817,-500.0,0.00049589,120]
[399066650,1766096795840,-500.0,0.00049589,120]
[399066651,1766096795863,-510.17,0.00049589,120]
[399066652,1766096795887,-500.0,0.00049589,120]
[399066653,1766096795912,-500.0,0.00049589,120]
[399066654,1766096795934,-500.0,0.00049589,120]
[399066655,1766096795957,-500.0,0.00049589,120]
[399066656,1766096795979,-500.0,0.00049589,120]
[399066657,1766096796003,-624.24,0.00049589,120]
[399066658,1766096796025,-500.0,0.00049863,120]
[399066659,1766096796048,-500.0,0.00049863,120]
[399066660,1766096796070,-500.0,0.00049863,120]
[399066661,1766096796310,-500.0,0.00049863,120]
[399066662,1766096796348,-564.89358178,0.00049863,120]
[399066663,1766096796371,-500.0,0.00049863,120]
[399066664,1766096796393,-500.0,0.00049863,120]
[399066665,1766096796416,-500.0,0.00049863,120]
[399066666,1766096796437,-500.0,0.00049863,120]
[399066667,1766096796461,-500.0,0.00049863,120]
[399066668,1766096796482,-500.0,0.00049863,120]
[399066669,1766096796506,-532.74972509,0.00049863,120]
[399066670,1766096796528,-500.0,0.00049863,120]
[399066671,1766096796550,-500.0,0.00049863,120]
[399066672,1766096796571,-640.04093455,0.00049863,120]
[399066673,1766096796593,-500.0,0.00049863,120]
[399066674,1766096796616,-970.79,0.00049863,120]
[399066675,1766096796639,-784.35,0.00049863,120]
[399066676,1766096796661,-500.0,0.00049863,120]
[399066677,1766096796686,-500.0,0.00049863,120]
[399066678,1766096796712,-500.0,0.00049863,120]
[399066679,1766096796733,-151.0,0.00049863,120]
[399066680,1766096796757,-500.0,0.00049863,120]
[399066681,1766096796779,-500.0,0.00049863,120]
[399066682,1766096796801,-500.0,0.00049863,120]
[399066683,1766096796822,-500.0,0.00049863,120]
[399066684,1766096796844,-500.0,0.00049863,120]
[399066685,1766096796866,-1254.72,0.00049863,120]
[399066686,1766096796887,-500.0,0.00049863,120]
[399066687,1766096796908,-500.0,0.00049863,120]
[399066688,1766096796929,-503.46270168,0.00049863,120]
[399066689,1766096796950,-505.00543994,0.00049863,120]
[399066690,1766096796971,-543.98,0.00049863,120]
[399066691,1766096796992,-507.54437122,0.00049863,120]
[399066692,1766096797015,-500.0,0.00049863,120]
[399066693,1766096797037,-500.0,0.00049863,120]
[399066694,1766096797058,-151.0,0.00049863,120]
[399066695,1766096797081,-388.25,0.00049863,120]
[399066696,1766096797102,-500.0,0.00049863,120]
[399066697,1766096797123,-500.0,0.00049863,120]
[399066698,1766096797147,-500.0,0.00049863,120]
[399066699,1766096797168,-603.15,0.00049863,120]
[399066700,1766096797192,-500.0,0.00049863,120]
[399066701,1766096797213,-500.0,0.00049863,120]
[399066702,1766096797236,-500.0,0.00049863,120]
[399066703,1766096797258,-223.43,0.00049863,120]
[399066704,1766096797278,-500.0,0.00049863,120]
[399066705,1766096797300,-231.34315425,0.00049863,120]
[399066706,1766096797499,600.0,0.00042111,60]
[399066707,1766096797537,350.0,0.00046322,120]
[399066708,1766096797561,192.88898377,0.00046322,120]
[399066709,1766096797585,177.11101623,0.00046322,120]
[399066711,1766096814110,720.0,0.00047083,120]
[399066735,1766096831434,5000.0,0.0004831,120]
[399066777,1766096846755,720.0,0.00047216,120]
[399066778,1766096854302,5000.0,0.0004831,120]
[399066779,1766096877138,5000.0,0.0004831,120]
[399066780,1766096879358,720.0,0.00047216,120]
[399066781,1766096890150,720.0,0.00046322,120]
[399066783,1766096900537,5000.0,0.0004831,120]
[399066784,1766096907736,720.0,0.00046322,120]
[399066785,1766096908134,602.90139252,0.000459,120]
[399066786,1766096911565,720.0,0.00047216,120]
[399066788,1766096923981,5000.0,0.0004831,120]
[399066832,1766096943852,720.0,0.00046321,120]
[399066833,1766096945139,-725.0,0.00020199,2]
[399066834,1766096945159,-236.25269741,0.00020403,2]
[399066835,1766096945179,-273.73695976,0.00022,14]
[399066836,1766096945198,-1126.46477363,0.00024,30]
[399066837,1766096945220,-897.76396476,0.000253,2]
[399066838,1766096945240,-250.0,0.0002673,2]
[399066839,1766096945260,-2301.6681354,0.00028541,2]
[399066840,1766096945383,5013.73781396,0.0004831,120]
[399066841,1766096947439,5000.0,0.0004831,120]
[399066843,1766096957130,-801.89467212,0.00028541,2]
[399066844,1766096957153,-400.0,0.00030025,2]
[399066845,1766096957174,-897.76396476,0.00030026,2]
[399066846,1766096957195,-897.76396476,0.00034752,2]
[399066847,1766096957219,-5893.5715425,0.00036968,2]
[399066848,1766096957242,-501.4888,0.00036974,30]
[399066849,1766096957265,-1000.0,0.00036974,30]
[399066850,1766096957287,-752.02503388,0.00038437,2]
[399066851,1766096957310,-897.76396476,0.00039477,2]
[399066852,1766096961105,-779.00074152,0.00041285,2]
[399066853,1766096961126,-168.47167946,0.00041343,2]
[399066854,1766096961146,-1361.0,0.00041963,2]
[399066855,1766096961167,-901.244,0.00041963,2]
[399066856,1766096961195,-600.0,0.0004211,60]
[399066857,1766096961215,-187.70116944,0.00042637,2]
[399066858,1766096961239,-303.24902303,0.00043791,2]
[399066859,1766096961259,-236.06385206,0.00043844,7]
[399066860,1766096961278,-898.66172872,0.00044203,2]
[399066863,1766096970210,1877.89264578,0.0004831,120]
[399066864,1766096975617,600.0,0.00046166,120]
[399066865,1766097007311,120.0,0.00046166,120]
[399066889,1766097032057,-226.56246154,0.00040458,120]
[399066891,1766097032067,-226.56246154,0.00040458,120]
[399066893,1766097032077,-226.56246154,0.00040458,120]
[399066894,1766097032086,-116.87230746,0.00040458,120]
[399066895,1766097032117,-109.69015408,0.00040458,120]
[399066896,1766097032127,-226.56246154,0.00040458,120]
[399066897,1766097032136,-226.56246154,0.00040458,120]
[399066898,1766097032146,-226.56246154,0.00040458,120]
[399066899,1766097032155,-226.56246154,0.00040458,120]
[399066900,1766097032164,-23.1772137,0.0004442,2]
[399066904,1766097032293,-1754.34153298,0.0004442,2]
[399066905,1766097032302,-1000.0,0.0004442,2]
[399066906,1766097032312,-500.0,0.00044999,2]
[399066907,1766097032321,-500.0,0.00045261,7]
[399066908,1766097032330,-487.7059734,0.00045261,7]
[399066909,1766097032339,-33347.02375068,0.00045262,2]
[399066910,1766097032407,164.73183345,0.00045261,120]
[399066927,1766097038115,-409.65316864,0.00045261,31]
[399066929,1766097038125,-319.76227178,0.00045262,2]
[399066931,1766097038138,-16055.95365329,0.00045262,2]
[399066933,1766097038150,-3495.3,0.00045262,2]
[399067077,1766097040384,-7875.0193949,0.00045262,2]
[399067080,1766097040396,-567.41850251,0.00045262,2]
[399067084,1766097040440,-3624.30585884,0.00045262,2]
[399067128,1766097047450,-600.0,0.00045262,2]
[399067129,1766097047462,-56392.90004692,0.00045262,2]
[399067130,1766097058284,500.0,0.00045261,120]
[399067131,1766097058345,370.46709969,0.00045261,120]
[399067132,1766097058368,129.53290031,0.00045261,120]
[399067133,1766097058396,291.51388672,0.00045261,120]
[399067134,1766097063005,500.0,0.00013273,2]
[399067135,1766097063347,166.83894,0.00013699,2]
[399067136,1766097063564,166.83894,0.0002911,2]
[399067137,1766097083750,514.18873828,0.00027386,2]
[399067138,1766097084409,514.18873828,0.0003291,2]
[399067139,1766097085075,514.18873828,0.00038433,2]
[399067140,1766097085742,514.18873828,0.00043957,2]
[399067141,1766097091750,257.15967589,0.00027386,2]
[399067142,1766097092408,257.15967589,0.0003291,2]
[399067143,1766097093084,257.15967589,0.00038433,2]
[399067144,1766097093740,257.15967589,0.00043957,2]
[399067145,1766097114531,183.0353705,0.00045261,120]
[399067146,1766097114559,500.0,0.00045261,120]
[399067147,1766097114594,420.07453413,0.00045261,120]
[399067148,1766097115739,256.90264684,0.00027386,2]
[399067149,1766097116405,256.90264684,0.00032859,2]
[399067150,1766097117095,256.90264684,0.00038331,2]
[399067151,1766097117416,2326.04190537,0.00040292,5]
[399067152,1766097117438,565.86804927,0.00040292,5]
[399067153,1766097123770,256.9023898,0.00027386,2]
[399067154,1766097124477,256.9023898,0.00032859,2]
[399067155,1766097125756,256.9023898,0.00038331,2]
[399067156,1766097134412,267.94983324,0.00035287,2]
[399067157,1766097136810,256.90238955,0.00027386,2]
[399067158,1766097137095,256.90238955,0.00032244,2]
[399067159,1766097137755,256.90238955,0.00037102,2]
[399067160,1766097148250,257.15903504,0.00027386,2]
[399067161,1766097148967,257.15903504,0.00032244,2]
[399067162,1766097149581,257.15903504,0.00037102,2]
[399067163,1766097173219,1384.14751361,0.00045361,120]
[399067164,1766097182886,447.3637109,0.00013273,2]
[399067165,1766097182970,500.0,0.00013273,2]
[399067166,1766097183142,500.0,0.00013273,2]
[399067167,1766097184841,500.0,0.00013273,2]
[399067168,1766097185236,500.0,0.00013273,2]
[399067169,1766097185929,500.3950614,0.00013273,2]
[399067170,1766097186955,501.03663679,0.00013273,2]
[399067171,1766097188958,179.55612335,0.00045285,120]
[399067172,1766097190637,500.0,0.00013273,2]
[399067173,1766097192756,500.0,0.00013273,2]
[399067174,1766097194456,500.0,0.00013273,2]
[399067175,1766097196472,393.42427433,0.00013273,2]
[399067176,1766097199114,501.7299145,0.00013273,2]
[399067177,1766097200108,500.0,0.00013273,2]
[399067178,1766097200155,501.11960352,0.00013273,2]
[399067179,1766097200876,210.24184006,0.00013273,2]
[399067180,1766097203745,300.0,0.00013673,2]
[399067181,1766097204399,500.0,0.00013273,2]
[399067182,1766097204474,500.0,0.00013273,2]
[399067183,1766097205946,500.0,0.00013273,2]
[399067184,1766097206071,500.0,0.00013273,2]
[399067185,1766097207096,500.0,0.00013273,2]
[399067186,1766097218800,160.0,0.00040458,120]
[399067230,1766097245807,500.0,0.00013273,2]
[399067231,1766097247354,500.0,0.00013273,2]
[399067232,1766097248825,500.53126956,0.00013273,2]
[399067233,1766097249686,500.38598533,0.00013273,2]
[399067234,1766097250536,17.0,0.00035,120]
[399067235,1766097250557,138.0,0.00035,120]
[399067236,1766097284769,777.7,0.00040458,120]
[399067237,1766097303326,500.0,0.00013273,2]
[399067238,1766097306412,500.0,0.00013273,2]
[399067239,1766097306490,500.0,0.00013273,2]
[399067240,1766097307278,500.0,0.00013699,2]
[399067241,1766097307310,1000.0,0.00014247,2]
[399067242,1766097314100,500.0,0.00013699,2]
[399067243,1766097314132,487.73130153,0.00014247,2]
[399067244,1766097314157,512.26869847,0.00014247,2]
[399067245,1766097363587,628.298984,0.00013273,2]
[399067246,1766097364713,500.0,0.00013273,2]
[399067247,1766097366532,150.0,8.564e-05,2]
[399067248,1766097367167,150.0,8.971e-05,2]
[399067249,1766097367572,150.0,9.379e-05,2]
[399067250,1766097367672,500.0,0.00013699,2]
[399067251,1766097367866,1000.0,0.00014247,2]
[399067252,1766097367904,500.0,0.00014795,2]
[399067253,1766097368001,150.0,9.787e-05,2]
[399067254,1766097368402,150.0,0.00010195,2]
[399067255,1766097368809,150.0,0.00010603,2]
[399067256,1766097369206,150.0,0.0001101,2]
[399067303,1766097423213,500.0,0.00013273,2]
[399067304,1766097424548,500.0,0.00013273,2]
[399067305,1766097428149,500.0,0.00013699,2]
[399067306,1766097428198,1000.0,0.00014247,2]
[399067307,1766097428268,1500.0,0.00014795,2]
[399067308,1766097433302,150.0,8.501e-05,2]
[399067309,1766097434186,150.0,8.906e-05,2]
[399067310,1766097434596,150.0,9.31e-05,2]
[399067311,1766097435618,500.0,0.00013699,2]
[399067312,1766097435671,359.44231753,0.00014247,2]
[399067313,1766097435700,548.61560943,0.00014247,2]
[399067314,1766097441997,896.0,0.00040458,120]
[399067315,1766097464820,0.79969232,0.00040458,120]
[399067337,1766097479950,395.43,9.99e-05,2]
[399067338,1766097480254,395.43,9.99e-05,2]
[399067340,1766097484397,500.0,0.00013273,2]
[399067341,1766097487852,500.0,0.00013699,2]
[399067342,1766097487887,1000.0,0.00014247,2]
[399067343,1766097487937,1000.0,0.00014795,2]
[399067344,1766097543875,500.0,0.00013273,2]
[399067345,1766097543964,166.22313344,0.00013273,2]
[399067346,1766097544141,500.0,0.00013273,2]
[399067347,1766097544202,500.0,0.00013699,2]
[399067348,1766097603864,500.0,0.00013273,2]
[399067349,1766097663918,500.0,0.00013273,2]
[399067350,1766097664165,500.0,0.00013273,2]
[399067351,1766097724205,500.0,0.00013273,2]
[399067352,1766097724295,500.0,0.00013273,2]
[399067353,1766097724934,500.0,0.00013273,2]
[399067360,1766097783954,500.0,0.00013273,2]
[399067361,1766097784493,500.0,0.00013273,2]
[399067362,1766097784554,500.95767197,0.00013821,2]
[399067379,1766097903180,500.0,0.00013273,2]
[399067380,1766097903228,500.94548527,0.00013821,2]
[399067381,1766097949116,-1507.19506053,0.00036,60]
[399067382,1766097963762,500.0,0.00013273,2]
[399067383,1766097966965,500.0,0.00013273,2]
[399067384,1766097966996,500.0,0.00013273,2]
[399067385,1766097990079,-161.766246,0.00024953,120]
[399067386,1766098030089,-233.00590924,0.00024703,120]
[399067387,1766098030110,-4006.75723992,0.00024953,120]
[399067434,1766098146173,-831.47651408,0.00024953,120]
[399067435,1766098146194,-565.35447376,0.00030561,2]
[399067436,1766098146214,-565.35447376,0.00034553,2]
[399067437,1766098146235,-1914.80493947,0.00036,60]
[399067438,1766098146255,-1120.0,0.00037357,3]
[399067439,1766098146275,-169.5249961,0.00037381,2]
[399067440,1766098146295,-400.0,0.00037523,2]
[399067441,1766098146314,-565.35447376,0.00038544,2]
[399067442,1766098146333,-300.0,0.00038558,5]
[399067443,1766098146353,-160.0,0.00039882,2]
[399067444,1766098146373,-175.0,0.00039903,5]
[399067445,1766098146393,-300.0,0.0004,5]
[399067446,1766098146413,-560.0,0.00040128,5]
[399067447,1766098146432,-200.0,0.00040274,5]
[399067448,1766098146452,-1368.98490588,0.00040292,5]
[399067449,1766098146471,-961.2668,0.00040309,2]
[399067450,1766098146491,-539.10937427,0.00040309,2]
[399067451,1766098146511,-2770.68639477,0.00040384,28]
[399067452,1766098146533,-162.688,0.00040458,58]
[399067453,1766098146553,-2520.20175415,0.00040458,120]
[399067454,1766098154221,-7478.99855353,0.00040458,120]
[399067455,1766098154242,-542.14759512,0.00040483,31]
[399067456,1766098159493,5000.0,0.00024953,2]
[399067457,1766098170322,-494.55505243,0.00041193,2]
[399067458,1766098170341,-337.862105,0.00041599,2]
[399067459,1766098170362,-150.0,0.0004196,120]
[399067460,1766098170381,-565.35447376,0.00042535,2]
[399067461,1766098170402,-632.0,0.00042696,2]
[399067462,1766098170423,-2157.0,0.00042696,2]
[399067463,1766098170444,-1361.0,0.00042696,2]
[399067464,1766098170464,-415.0,0.00042696,2]
[399067465,1766098170485,-783.0,0.00042913,5]
[399067466,1766098170506,-558.66442305,0.00043121,2]
[399067467,1766098170527,-155.0,0.000434,120]
[399067468,1766098170549,-1048.1918492,0.00043577,2]
[399067469,1766098170569,-151.0,0.00043726,60]
[399067470,1766098170590,-870.46709969,0.000439,15]
[399067471,1766098170612,-157.37590138,0.00043904,7]
[399067472,1766098170637,-177.0,0.0004396,120]
[399067473,1766098171222,600.0,0.00041293,60]
[399067474,1766098182333,5000.0,0.00024953,2]
[399067475,1766098202033,407.0,0.00040483,5]
[399067476,1766098203287,600.0,0.00041293,60]
[399067477,1766098205168,5000.0,0.00024953,2]
[399067478,1766098222728,258.34,0.000319,7]
[399067479,1766098228034,5000.0,0.00024953,2]
[399067500,1766098232232,-259.50283474,0.00040484,120]
[399067501,1766098232242,-259.50283474,0.00040484,120]
[399067502,1766098232251,-259.50283474,0.00040484,120]
[399067503,1766098232260,-259.50283474,0.00040484,120]
[399067504,1766098232274,-259.50283474,0.00040484,120]
[399067505,1766098232284,-259.50283474,0.00040484,120]
[399067506,1766098232294,-259.50283474,0.00040484,120]
[399067507,1766098232303,-259.50283474,0.00040484,120]
[399067508,1766098232313,-22085.66335362,0.00040484,120]
[399067509,1766098232323,-5000.0,0.00040484,120]
[399067510,1766098232332,-239.78,0.00044421,2]
[399067511,1766098232345,-239.78,0.00044421,2]
[399067512,1766098232354,-239.78,0.00044421,2]
[399067513,1766098232364,-239.78,0.00044421,2]
[399067514,1766098232373,-239.78,0.00044421,2]
[399067515,1766098232383,-239.78,0.00044421,2]
[399067516,1766098232392,-239.78,0.00044421,2]
[399067517,1766098232402,-166.85,0.00044421,2]
[399067518,1766098232411,-166.83894,0.00044521,2]
[399067519,1766098232420,-294.95184963,0.00044796,2]
[399067520,1766098232430,-198.99,0.00045,120]
[399067521,1766098232439,-243.47181748,0.00045034,2]
[399067522,1766098232448,-243.47181746,0.00045059,2]
[399067523,1766098232457,-243.47181746,0.00045085,2]
[399067524,1766098232467,-151.0,0.00045108,2]
[399067525,1766098232477,-1000.0,0.00045108,2]
[399067526,1766098232486,-151.0,0.00045108,2]
[399067527,1766098232495,-805.45956924,0.00045108,2]
[399067528,1766098232504,-151.0,0.00045108,2]
[399067529,1766098232514,-151.0,0.00045108,2]
[399067530,1766098232523,-151.0,0.00045108,2]
[399067531,1766098232532,-160.0,0.00045108,2]
[399067532,1766098232541,-151.0,0.00045108,2]
[399067533,1766098232554,-160.0,0.00045108,2]
[399067534,1766098232563,-151.0,0.00045108,2]
[399067535,1766098232572,-160.0,0.00045108,2]
[399067536,1766098232582,-151.0,0.00045108,2]
[399067537,1766098232592,-160.0,0.00045108,2]
[399067538,1766098232602,-151.0,0.00045108,2]
[399067539,1766098232612,-184.53595931,0.00045108,2]
[399067540,1766098232622,-151.0,0.00045108,2]
[399067541,1766098232632,-292.54011001,0.00045108,2]
[399067542,1766098232641,-243.47181746,0.0004511,2]
[399067543,1766098232650,-153.14,0.00045125,30]
[399067544,1766098232659,-765.72,0.00045125,30]
[399067545,1766098232669,-500.0,0.00045134,7]
[399067546,1766098232678,-500.0,0.00045134,7]
[399067547,1766098232688,-264.42245724,0.00045134,7]
[399067548,1766098232697,-114949.05125497,0.00045135,2]
[399067549,1766098232767,-118.58952104,0.00045135,2]
[399067550,1766098232778,-785.29022319,0.00045135,2]
[399067551,1766098232789,-6004.66872812,0.00045135,2]
[399067552,1766098232800,-1423.65178104,0.00045135,2]
[399067553,1766098232812,-562.88504906,0.00045135,2]
[399067561,1766098238334,-822.42279838,0.00045135,2]
[399067562,1766098238346,-645.04527772,0.00045135,2]
[399067563,1766098238358,-1049.11911392,0.00045135,2]
[399067564,1766098238368,-890.15205145,0.00045135,2]
[399067565,1766098238380,-281.00478041,0.00045135,2]
[399067566,1766098238447,-29743.75849643,0.00045135,2]
[399067567,1766098238458,-40161.96984318,0.00045135,2]
[399067568,1766098238469,-338.84055212,0.00045135,2]
[399067570,1766098238480,-4819.5,0.00045135,2]
[399067571,1766098238491,-16844.9999999,0.00045135,2]
[399067572,1766098238501,-333.71912776,0.00045135,2]
[399067573,1766098238512,-2477.74752223,0.00045135,2]
[399067578,1766098240710,-471.08479435,0.00045135,2]
[399067579,1766098240721,-1023.59729684,0.00045135,2]
[399067580,1766098240731,-303.59,0.00045135,2]
[399067581,1766098240743,-1499.98806,0.00045135,2]
[399067587,1766098243084,150.0,0.00042696,2]
[399067592,1766098243676,-33401.85134745,0.00045135,2]
[399067594,1766098248119,-851.78723781,0.00045135,2]
[399067595,1766098248130,-1434.71368843,0.00045135,2]
[399067597,1766098249233,-35654.80395575,0.00045135,2]
[399067598,1766098249244,-5000.0,0.00045135,2]
[399067599,1766098249256,-305.00000001,0.00045135,2]
[399067600,1766098250992,5000.0,0.00024953,120]
[399067601,1766098257216,150.115,0.00042696,2]
[399067602,1766098267199,281.503,0.00042696,2]
[399067603,1766098273978,5000.0,0.00024953,120]
[399067604,1766098284324,205.35339559,0.00030876,2]
[399067605,1766098284916,205.35339559,0.00041909,2]
[399067606,1766098296808,5000.0,0.00024953,120]
[399067607,1766098299800,39.49866781,0.00022639,120]
[399067608,1766098299820,10624.50133219,0.00022639,120]
[399067609,1766098308254,204.61661712,0.00030876,2]
[399067610,1766098319829,3523.40753354,0.00024953,120]
[399067611,1766098319852,1020.83333334,0.00024953,120]
[399067612,1766098383662,500.0,0.00013273,2]
[399067613,1766098386320,500.0,0.00013273,2]
[399067614,1766098386597,500.0,0.00013273,2]
[399067615,1766098386679,500.0,0.00013273,2]
[399067616,1766098386713,500.0,0.00013273,2]
[399067617,1766098386845,500.0,0.00013273,2]
[399067618,1766098388275,500.0,0.00013273,2]
[399067619,1766098390335,500.0,0.00013273,2]
[399067620,1766098390364,500.0,0.00013273,2]
[399067621,1766098393549,500.0,0.00013273,2]
[399067622,1766098395631,500.0,0.00013273,2]
[399067623,1766098397405,500.0,0.00013273,2]
[399067624,1766098401274,500.0,0.00013273,2]
[399067625,1766098401445,500.0,0.00013273,2]
[399067626,1766098405828,500.0,0.00013273,2]
[399067627,1766098406187,500.0,0.00013273,2]
[399067628,1766098406224,300.0,0.00013673,2]
[399067629,1766098406254,500.0,0.00013273,2]
[399067630,1766098406504,500.0,0.00013273,2]
[399067631,1766098407570,500.0,0.00013273,2]
[399067632,1766098444782,500.0,0.00013699,2]
[399067633,1766098445030,500.27731732,0.00013699,2]
[399067634,1766098445168,199.73268268,0.00013699,2]
[399067635,1766098445192,300.63426667,0.00013699,2]
[399067636,1766098445218,500.39605779,0.00013699,2]
[399067640,1766098447645,500.0,0.00013273,2]
[399067641,1766098447941,500.0,0.00013273,2]
[399067642,1766098449312,500.0,0.00013273,2]
[399067644,1766098452396,500.0,0.00013273,2]
[399067645,1766098452754,500.0,0.00013273,2]
[399067646,1766098453776,322.4969226,0.00013273,2]
[399067647,1766098503796,500.0,0.00013699,2]
[399067648,1766098503831,1000.0,0.00014247,2]
[399067649,1766098503865,1000.67474989,0.00014247,2]
[399067650,1766098503897,500.0,0.00013273,2]